Cogmind - Beta 14 @@@ ROGUE MODE // 2024.08.18 @ 10:04:23 Player: Gilvian Result: Destroyed by as-90672 with Assembled Blade Performance ------------- Evolutions (0) 0 Regions Visited (2) 400 Robots Destroyed (34) 170 Value Destroyed (627) 627 Prototype IDs (0) 0 Alien Tech Used (0) 0 Bonus (43) 43 TOTAL SCORE: 1240 Bonus ------- High Alert Combat Kills 43 Cogmind --------- Core Integrity 0/250 Matter 173/300 Energy 100/100 System Corruption 0% Temperature Cool (0) Movement Core (100) Ox1 Location -10/Mines Parts ------- > --- POWER (1) -------- (None) > --- PROPULSION (2) --- (None) > --- UTILITY (2) ------ Small Storage Unit > --- WEAPON (2) ------- (None) > --- INVENTORY (8) ---- Sensor Array Signal Interpreter Targeting Computer Grenade Launcher Datajack Peak State ------------ > --- POWER ------------ Light Nuclear Core > --- PROPULSION ------- Aluminum Leg Aluminum Leg > --- UTILITY ---------- Small Storage Unit Weapon Shielding > --- WEAPON ----------- Light Assault Rifle Grenade Launcher > --- INVENTORY -------- Sensor Array Signal Interpreter Targeting Computer Grenade Launcher Datajack [Rating: 9] Favorites ----------- Power Light Ion Engine Engine Light Ion Engine Power Core Light Nuclear Core Propulsion Aluminum Leg Leg Aluminum Leg Utility Small Storage Unit Storage Small Storage Unit Protection Weapon Shielding Weapon Grenade Launcher Energy Gun Medium Laser Ballistic Gun Light Assault Rifle Launcher Grenade Launcher Build | -11 -10 -10 ------- Run | Yrd Mat Min Slots Evolved . | . . . Power . | . . . Propulsion . | . . . Utility . | . . . Weapon . | . . . Parts Attached 19 | 6 13 . Power 4 | 1 3 . Engine 3 | 1 2 . Core 1 | . 1 . Reactor . | . . . Propulsion 7 | 2 5 . Treads . | . . . Leg 7 | 2 5 . Wheel . | . . . Hover . | . . . Flight . | . . . Utility 2 | 1 1 . Device . | . . . Storage 1 | 1 . . Processor . | . . . Hackware . | . . . Protection 1 | . 1 . Artifact . | . . . Weapon 6 | 2 4 . Energy Gun 2 | 2 . . Energy Cannon . | . . . Ballistic Gun 1 | . 1 . Ballistic Cannon . | . . . Launcher 3 | . 3 . Special Weapon . | . . . Impact Weapon . | . . . Slashing Weapon . | . . . Piercing Weapon . | . . . Special Melee Weapon . | . . . Unidentified Prototypes . | . . . Parts Lost 7 | . 1 6 Power 2 | . 1 1 Propulsion 2 | . . 2 Utility 1 | . . 1 Weapon 2 | . . 2 Highest Loss Streak 6 | . 1 6 To Critical Strikes . | . . . Average Slot Usage (%) 96 | . 98 79 Engine 12 | . 13 . Core 1 | . . 8 Leg 27 | . 28 20 Storage 14 | . 14 14 Protection 12 | . 12 10 Energy Gun 9 | . 10 . Ballistic Gun 5 | . 4 14 Launcher 12 | . 12 10 Peak Build Rating 9 | 6 9 9 Average Rating 6 | 3 6 7 On Entrance 5 | . 6 9 Naked Turns . | . . . Heaviest Build 15 | 11 15 15 Greatest Support 20 | 20 20 20 Greatest Overweight (x) 1 | . 1 1 Average Overweight (x) . | . . . Largest Inventory Capacity 8 | 8 8 8 Average Capacity 7 | 6 8 8 Most Carried 8 | 5 8 5 Average Carried 4 | . 4 5 Final Capacity 8 | 8 8 8 Final Carried 5 | . 5 5 Class Distribution -------------------- 100% | Mutant Dominant Class ---------------- Mutant | -10/Materials Mutant | -10/Mines Resources | -11 -10 -10 ----------- Run | Yrd Mat Min Matter Collected 629 | 217 364 48 Remotely . | . . . Salvage Created 666 | . 601 65 Parts 54 | . 51 3 Haulers Intercepted 1 | . 1 . Recyclers Shooed 1 | . 1 . Parts Field Recycled . | . . . Retrieved Matter . | . . . Parts Self-Destructed . | . . . Prevented . | . . . Kills | -11 -10 -10 ------- Run | Yrd Mat Min Combat Hostiles Destroyed 23 | . 15 8 Guns 7 | . 3 4 AOE 16 | . 12 4 Classes Destroyed 9 | . 8 1 Worker 3 | . 3 . Builder 6 | . 6 . Hauler 1 | . 1 . Recycler 3 | . 3 . Mechanic 1 | . 1 . Watcher 2 | . 2 . Swarmer 9 | . 6 3 Grunt 9 | . 9 . Assembled 5 | . . 5 Best Kill Streak 8 | . 8 4 Combat Bots Only 4 | . 3 4 Max Kills in Single Turn 4 | . 4 2 Gunslinging . | . . . Exploded 3 | . 3 2 Melee . | . . . Uniques/NPCs Destroyed . | . . . Combat | -11 -10 -10 -------- Run | Yrd Mat Min Hostile Shots Fired 85 | . 30 55 Missed 27 | . 11 16 Damage Taken 1017 | . 411 606 Core 259 | . 58 201 Absorbed by Shields . | . . . Redirected to Shielding 53 | . 33 20 Regen/Repaired (Parts) 59 | . 59 . Core Remaining (%) 100 | 100 . . Volleys Fired 78 | . 56 22 Largest 2 | . 2 1 Hottest 50 | . 50 30 Shots Fired 79 | . 57 22 Gun 42 | . 24 18 Cannon . | . . . Launcher 37 | . 33 4 Special . | . . . Kinetic 31 | . 13 18 Thermal 11 | . 11 . Explosive 37 | . 33 4 Electromagnetic . | . . . Robot Hit Streak 10 | . 10 2 Robot Miss Streak 3 | . 2 3 Penetration Max . | . . . Secondary Targets . | . . . Shots Hit Robots 40 | . 31 9 Core Hits 61 | . 45 16 Critical Kills . | . . . Critical Parts Destroyed . | . . . Critical Strikes 1 | . 1 . Burn 1 | . 1 . Melee Attacks . | . . . Impact . | . . . Slashing . | . . . Piercing . | . . . Sneak Attacks . | . . . Combat Hostiles . | . . . Follow-up Attacks . | . . . Damage Inflicted 2242 | . 1961 281 Guns 293 | . 188 105 Cannons . | . . . Explosions 1949 | . 1773 176 Melee . | . . . Ramming . | . . . Kinetic 167 | . 62 105 Thermal 126 | . 126 . Explosive 1949 | . 1773 176 Electromagnetic . | . . . Impact . | . . . Slashing . | . . . Piercing . | . . . Highest Corruption . | . . . Average Corruption . | . . . Corruption Purged . | . . . Corruption Blocked . | . . . Overload Shots . | . . . Overflow Damage 84 | . 84 . Projectiles . | . . . Explosions 84 | . 84 . Melee . | . . . Knockbacks . | . . . Impact . | . . . Kinetic . | . . . Secondary . | . . . Self-Inflicted Damage 225 | . 203 22 Shots 10 | . 9 1 Rammed . | . . . Targets Rammed . | . . . Kicked . | . . . Crushed . | . . . Highest Temperature 88 | . 88 4 Average Temperature 21 | . 26 2 Received Heat Transfer 87 | . 87 . Siege Activations . | . . . Robots Corrupted . | . . . Combat Hostiles . | . . . Parts Fried . | . . . Impact Corruptions . | . . . Robots Melted . | . . . Combat Hostiles . | . . . Parts Melted 1 | . 1 . Heat Transferred 444 | . 444 . Parts Sabotaged . | . . . Parts Stolen . | . . . Parts Stripped . | . . . Power Chain Reactions . | . . . Alert | -11 -10 -10 ------- Run | Yrd Mat Min Peak Influence 492 | . 492 300 Initial 187 | . . 187 Average 312 | . 326 264 Maximum Alert Level 2 | . 2 1 Low Security (%) 23 | 100 22 . Level 1 36 | . 33 99 Level 2 39 | . 44 . Level 3 . | . . . Level 4 . | . . . Level 5 . | . . . High Security . | . . . Max Security . | . . . Squads Dispatched 7 | . 7 . Investigation 6 | . 6 . Extermination . | . . . Reinforcement 1 | . 1 . Assault . | . . . Garrison . | . . . Intercept . | . . . Searches Triggered . | . . . Construction Impeded . | . . . Haulers Reinforced . | . . . Active Scanning Responses . | . . . Cargo Convoy Interrupts . | . . . Stealth | -11 -10 -10 --------- Run | Yrd Mat Min Distress Signals 2 | . 2 . Communications Jammed . | . . . Distress Signals . | . . . Times Spotted 37 | . 26 11 Peak Tracking Total 8 | . 3 8 Tactical Retreats 1 | . . 1 Traps | -11 -10 -10 ------- Run | Yrd Mat Min Traps Triggered 3 | . 3 . Indirectly . | . . . Trap Hack Attempts . | . . . Triggered . | . . . Disarmed . | . . . Reprogrammed . | . . . Reused . | . . . Traps Extracted . | . . . Installed . | . . . Triggered . | . . . Machines | -11 -10 -10 ---------- Run | Yrd Mat Min Machines Disabled 12 | . 12 . Max in Single Turn 2 | . 2 . Machines Repaired . | . . . Machines Dismantled . | . . . Machines Sabotaged . | . . . Overloaded Fab Kills . | . . . Hacking | -11 -10 -10 --------- Run | Yrd Mat Min Machines Accessed 9 | . 9 . Terminals 6 | . 6 . Fabricators . | . . . Repair Stations 1 | . 1 . Recycling Units 2 | . 2 . Scanalyzers . | . . . Garrison Access . | . . . Total Hacks 30 | . 30 . Successful 15 | . 15 . Failed 15 | . 15 . Catastrophic 4 | . 4 . Database Lockouts . | . . . Manual . | . . . Terminals 17 | . 17 . Fabricators . | . . . Repair Stations 3 | . 3 . Recycling Units 10 | . 10 . Scanalyzers . | . . . Garrison Access . | . . . Terminal Hacks 6 | . 6 . Record 2 | . 2 . Emergency Access Points 1 | . 1 . Alert Level 2 | . 2 . Hauler Manifests 1 | . 1 . Fabricator Hacks . | . . . Repair Station Hacks 2 | . 2 . Scan Component 1 | . 1 . Repair 1 | . 1 . Recycling Unit Hacks 7 | . 7 . Recycle Component 1 | . 1 . Process 2 | . 2 . Report Inventory 2 | . 2 . Retrieve Matter 2 | . 2 . Scanalyzer . | . . . Garrison Access Hacks . | . . . Unauthorized Hacks . | . . . Terminals . | . . . Fabricators . | . . . Repair Stations . | . . . Recycling Units . | . . . Scanalyzers . | . . . Garrison Access . | . . . Data Cores Recovered . | . . . Used . | . . . Hacking Detections 7 | . 7 . Full Trace Events 7 | . 7 . Feedback Events . | . . . Feedback Blocked . | . . . Robot Schematics Acquired . | . . . Robots Built . | . . . Authchips . | . . . Time . | . . . Total Robot Build Rating . | . . . Part Schematics Acquired . | . . . Parts Built . | . . . Authchips . | . . . Time . | . . . Total Part Build Rating . | . . . Parts Repaired 1 | . 1 . Time 26 | . 26 . Parts Recycled 1 | . 1 . Recycled Matter 161 | . 161 . Retrieved Matter . | . . . Retrieved Components . | . . . Parts Scanalyzed . | . . . Part Schematics Acquired . | . . . Parts Damaged . | . . . Bothacking | -11 -10 -10 ------------ Run | Yrd Mat Min Used RIF Installer . | . . . Robots Hacked . | . . . Non-combat . | . . . Combat . | . . . Robot Hacks Applied . | . . . Relay Couplers Released . | . . . Fabnet Peak Effective % . | . . . Robots Rewired . | . . . Allies Hacked . | . . . Hacks Repelled . | . . . Allies | -11 -10 -10 -------- Run | Yrd Mat Min Total Allies . | . . . Largest Group . | . . . Highest-Rated Group . | . . . Highest-Rated Ally . | . . . Total Orders . | . . . Ally Attacks . | . . . Total Damage . | . . . Kills . | . . . Allies Corrupted . | . . . Allies Melted . | . . . Intel | -11 -10 -10 ------- Run | Yrd Mat Min Robot Analysis Total . | . . . Derelict Logs Recovered . | . . . Drone Launches . | . . . Drone Recoveries . | . . . Exploration | -11 -10 -10 ------------- Run | Yrd Mat Min Turns Passed 1640 | 53 1482 105 Spaces Moved 1171 | 39 1077 55 Core 25 | 15 . 10 Treads . | . . . Legs 1146 | 24 1077 45 Wheels . | . . . Hover . | . . . Flight . | . . . Fastest Speed 50 | 50 120 100 Average Speed 119 | 93 120 116 Slowest Speed 190 | 120 190 120 Overloaded Moves . | . . . Propulsion Burnouts . | . . . Robots Hopped . | . . . Cave-ins Triggered . | . . . Exploration Rate (%) 38 | 3 93 19 Regions Visited 2 Branch Regions 1 Pre-discovered Areas . | . . . Known Exits Taken . | . . . Unknown Exits Taken 2 | 1 1 . Scrap Searched . | . . . Spaces Dug 16 | . 16 . Terrain Destroyed 252 | . 228 24 Melee . | . . . Projectile . | . . . AOE 252 | . 228 24 Terrain Rammed . | . . . Walls Destroyed . | . . . Machines Disabled . | . . . Actions | -11 -10 -10 --------- Run | Yrd Mat Min Total 1345 | 55 1212 78 Wait 50 | 6 43 1 Move 1169 | 38 1076 55 Hop . | . . . Pick Up 22 | 5 17 . Fast Attach 2 | 1 1 . Attach 13 | 5 8 . Detach 1 | . 1 . Swap 4 | . 4 . Drop 6 | . 6 . Fire 78 | . 56 22 Melee . | . . . Ram . | . . . Kick . | . . . Crush . | . . . Escape Stasis . | . . . Rewire . | . . . Trap . | . . . Miscellaneous . | . . . Route ------- -11/Scrapyard -10/Materials (discovered 5 exits: [*Mat x3] / [*Min x2]) -10/Mines History --------- Turn | Location | Event 16 | -11/Scrapyard | Discovered new exit (range 16) 54 | -11/Scrapyard | Entered Materials 228 | -10/Materials | Discovered new exit (range 6) 276 | -10/Materials | Discovered new exit (range 12) 311 | -10/Materials | Build established: Mutant 442 | -10/Materials | Discovered new exit (range 6) 482 | -10/Materials | Discovered new exit (range 12) 838 | -10/Materials | Discovered new exit (range 10) 880 | -10/Materials | Repaired Grenade Launcher 1536 | -10/Materials | Entered Mines 1587 | -10/Mines | Assembled infested the area 1613 | -10/Mines | Core integrity fell below 50% 1622 | -10/Mines | Core integrity fell below 20% 1641 | -10/Mines | Destroyed by as-90672 with Assembled Blade Last Messages --------------- LOCATION=UNKNOWN GOAL=ESCAPE S-10 Pest suffers critical hit (Destroy). S-10 Pest destroyed. Acquired 17 matter. Acquired 19 matter. Acquired 12 matter. ALERT: Infestation in the mines, dispatching Demolisher response squad. as-97499 destroyed. Lgt. Nuclear Core destroyed. as-38559 destroyed. as-77593 destroyed. as-84475 destroyed. Weapon Shielding destroyed. Grenade Launcher destroyed. Aluminum Leg destroyed. as-15209 destroyed. as-34722 destroyed. Lgt. Assault Rifle destroyed. Map ----- +----------------------------------------------------+ | | | | | | | | | | | | | | | ????????????????????????????????????????????? | | ???????????????????????##############???????? | | ???????????????????????# #???????? | | ???????????????????????# """ """ #???????? | | ???????????????????????# """ """ #???????? | | ???????????????????????# """ """ #???????? | | ???????????????????????# #???????? | | ???????????????????????# """ """ #???????? | | ???????????????????????# """ """ #???????? | | ???????????????????????# """ """ #???????? | | ???????????????????????# #???????? | | ???????????????????????# """ = = #???????? | | ????????????#??????????# """ = #???????? | | ????????????# ?????????# """ #???????? | | ????????????# ????????# #???????? | | ????????????# ???????# """ """ #???????? | | ????????????# #??????# """ """ #???????? | | ????????????# #?????# a""" """ #???????? | | ????????????## #????# @% #???????? | | ????????????# #???##### ########???????? | | ????????????# ######## #??????????????? | | ??????? # # #??????????????? | | ??????? #??????????????? | | ??????? % #??????????????? | | ??????? % % ###??????????????? | | ?????????# #####????????????????? | | ?????????#### ????????????????????? | | ????????????## ????????????????????? | | ?????????????# ???????????????????? | | ?????????????## ???????????????????? | | ??????????????######### ??????????????????? | | ???????????????????????# ??????????????????? | | ???????????????????????? ?????????????????? | | ???????????????????????? ?????????????????? | | ???????????????????????? ????????????????? | | ???????????????????????? ????????????????? | | ????????????????????????# ???????????????? | | ?????????????????????????## ???????????????? | | ????????????????????????????????????????????? | | ????????????????????????????????????????????? | | ????????????????????????????????????????????? | | ????????????????????????????????????????????? | | ????????????????????????????????????????????? | +----------------------------------------------------+ Best States ------------- Heat Dissipation 25 Energy Generation 14 Energy Capacity 160 Matter Stores 300 Matter Capacity 300 Sight Range 16 Terrain Scan Density 10 Weapon Shielding 33 Evasion (%) 55 Item Schematics ----------------- None Robot Schematics ------------------ None Fabricated ------------ Nothing Alien Tech Used ----------------- None Achievements -------------- None Challenges ------------ None Game ------ Seed ReactionProtonLeg Manual? 0 Play Time 00:16:21 Cumulative 5.1 hours Start 2024.08.18 @ 09:47:33 End 2024.08.18 @ 10:04:23 Sessions 1 Manual Loads 0 Difficulty Rogue Special Mode None Game No. 15 Rogue 15 Adventurer 0 Explorer 0 Win Type - Total 0 Types 0/0/0/0/0/0/0/0/0 Lore% 2 Gallery% 9 Achievement% 12 Wizard Run 0 Options --------- Layout 1 ASCII 0 Keyboard 0 Movement Mouse Keybinds 0 Fullscreen 1 Font 24/Smallcaps Map View 50x35 Zoom Use 0% Tactical HUD 0 Map Filters NONE Filters NONE Steam 1 RUN: 8ea09f6b-f076-4d57-9a94-3392c8ae2c92